[Event "December 12 Late 2023"]
[Site "https://www.chess.com"]
[Date "2023.12.12"]
[Round "6"]
[White "Brodsky, David"]
[Black "Kashefi, Amir Hosein"]
[Result "1-0"]
[Board "41"]
[TimeControl "180+1"]
[WhiteFideId "2073250"]
[BlackFideId "12557935"]
[WhiteElo "2792"]
[BlackElo "2564"]
[WhiteTeam "USA"]
[BlackTeam "IRI"]
[WhiteClock "0:00:03"]
[BlackClock "0:00:00"]

1. d4 {[%clk 0:03:00]}  d5 {[%clk 0:02:59]} 2. Nf3 {[%clk 0:03:01]}  Nf6 {[%clk 0:02:59]} 3. Bf4 {[%clk 0:02:59]}  Bf5 {[%clk 0:02:58]} 4. e3 {[%clk 0:02:58]}  e6 {[%clk 0:02:58]} 5. c4 {[%clk 0:02:59]}  c6 {[%clk 0:02:58]} 6. Qb3 {[%clk 0:02:53]}  Qb6 {[%clk 0:02:58]} 7. c5 {[%clk 0:02:52]}  Qxb3 {[%clk 0:02:58]} 8. axb3 {[%clk 0:02:53]}  Nbd7 {[%clk 0:02:58]} 9. b4 {[%clk 0:02:51]}  Bxb1 {[%clk 0:02:57]} 10. Rxb1 {[%clk 0:02:51]}  a6 {[%clk 0:02:57]} 11. h3 {[%clk 0:02:45]}  Be7 {[%clk 0:02:56]} 12. Nd2 {[%clk 0:02:45]}  O-O {[%clk 0:02:48]} 13. Nb3 {[%clk 0:02:45]}  Bd8 {[%clk 0:02:38]} 14. Ra1 {[%clk 0:02:33]}  Rc8 {[%clk 0:02:36]} 15. Be2 {[%clk 0:02:27]}  Bc7 {[%clk 0:02:33]} 16. Bxc7 {[%clk 0:02:20]}  Rxc7 {[%clk 0:02:32]} 17. Na5 {[%clk 0:02:21]}  e5 {[%clk 0:02:32]} 18. f3 {[%clk 0:02:14]}  Re8 {[%clk 0:02:32]} 19. Kd2 {[%clk 0:02:14]}  Nf8 {[%clk 0:02:32]} 20. Rhe1 {[%clk 0:02:08]}  Rce7 {[%clk 0:02:32]} 21. Bf1 {[%clk 0:02:03]}  exd4 {[%clk 0:02:30]} 22. exd4 {[%clk 0:02:02]}  Ne6 {[%clk 0:02:31]} 23. Kc3 {[%clk 0:01:56]}  Kf8 {[%clk 0:02:29]} 24. Bxa6 {[%clk 0:01:34]}  bxa6 {[%clk 0:02:26]} 25. Nxc6 {[%clk 0:01:35]}  Rb7 {[%clk 0:02:10]} 26. Rxa6 {[%clk 0:01:34]}  Rc8 {[%clk 0:02:07]} 27. Ne5 {[%clk 0:01:20]}  Re7 {[%clk 0:02:00]} 28. Rea1 {[%clk 0:01:18]}  Nc7 {[%clk 0:01:57]} 29. Rb6 {[%clk 0:01:09]}  Nd7 {[%clk 0:01:49]} 30. Nxd7+ {[%clk 0:01:06]}  Rxd7 {[%clk 0:01:49]} 31. b5 {[%clk 0:00:59]}  Re7 {[%clk 0:01:45]} 32. Rb7 {[%clk 0:00:45]}  Re3+ {[%clk 0:01:37]} 33. Kd2 {[%clk 0:00:38]}  Rb3 {[%clk 0:01:37]} 34. Raa7 {[%clk 0:00:31]}  Ne6 {[%clk 0:00:39]} 35. Rxf7+ {[%clk 0:00:27]}  Kg8 {[%clk 0:00:40]} 36. Rfe7 {[%clk 0:00:10]}  Rxb2+ {[%clk 0:00:34]} 37. Kc3 {[%clk 0:00:08]}  Re2 {[%clk 0:00:28]} 38. b6 {[%clk 0:00:08]}  Kh8 {[%clk 0:00:25]} 39. b7 {[%clk 0:00:07]}  Rg8 {[%clk 0:00:02]} 40. Ra8 {[%clk 0:00:07]}  Re3+ {[%clk 0:00:02]} 41. Kd2 {[%clk 0:00:04]}  Rb3 {[%clk 0:00:02]} 42. Rxe6 {[%clk 0:00:03]}  Rxb7 {[%clk 0:00:00]} 43. Ree8 {[%clk 0:00:03]} 1-0

[Event "December 12 Late 2023"]
[Site "https://www.chess.com"]
[Date "2023.12.12"]
[Round "6"]
[White "Play, Gilles"]
[Black "Matinian, Nikita"]
[Result "0-1"]
[Board "43"]
[TimeControl "180+1"]
[WhiteFideId "45130892"]
[BlackFideId "24129100"]
[WhiteElo "2565"]
[BlackElo "2769"]
[WhiteTeam "FRA"]
[BlackTeam "FID"]
[WhiteClock "0:00:00"]
[BlackClock "0:00:03"]

1. e4 {[%clk 0:03:00]}  c5 {[%clk 0:03:00]} 2. c3 {[%clk 0:02:59]}  d5 {[%clk 0:02:59]} 3. exd5 {[%clk 0:02:58]}  Qxd5 {[%clk 0:03:00]} 4. d4 {[%clk 0:02:58]}  Nf6 {[%clk 0:03:01]} 5. Nf3 {[%clk 0:02:58]}  e6 {[%clk 0:03:01]} 6. Na3 {[%clk 0:02:58]}  a6 {[%clk 0:03:01]} 7. Nc4 {[%clk 0:02:55]}  Nbd7 {[%clk 0:03:01]} 8. Be2 {[%clk 0:02:49]}  b5 {[%clk 0:03:01]} 9. Nce5 {[%clk 0:02:49]}  Bb7 {[%clk 0:03:00]} 10. Be3 {[%clk 0:02:43]}  Be7 {[%clk 0:02:44]} 11. c4 {[%clk 0:02:27]}  bxc4 {[%clk 0:02:31]} 12. Bxc4 {[%clk 0:02:22]}  Qe4 {[%clk 0:02:29]} 13. Nxf7 {[%clk 0:02:15]}  cxd4 {[%clk 0:02:23]} 14. N7g5 {[%clk 0:02:14]}  Qg4 {[%clk 0:01:31]} 15. Bxe6 {[%clk 0:01:55]}  Qxg2 {[%clk 0:01:31]} 16. Rg1 {[%clk 0:01:54]}  Qxg1+ {[%clk 0:01:16]} 17. Nxg1 {[%clk 0:01:53]}  dxe3 {[%clk 0:01:16]} 18. Qa4 {[%clk 0:01:38]}  exf2+ {[%clk 0:01:15]} 19. Kxf2 {[%clk 0:01:37]}  h6 {[%clk 0:01:08]} 20. N5f3 {[%clk 0:01:30]}  Rf8 {[%clk 0:00:52]} 21. Rd1 {[%clk 0:01:27]}  Rd8 {[%clk 0:00:52]} 22. Qc2 {[%clk 0:01:10]}  Ne4+ {[%clk 0:00:40]} 23. Ke2 {[%clk 0:01:01]}  Ndc5 {[%clk 0:00:40]} 24. Rxd8+ {[%clk 0:00:58]}  Bxd8 {[%clk 0:00:40]} 25. Bh3 {[%clk 0:00:52]}  a5 {[%clk 0:00:40]} 26. Ke1 {[%clk 0:00:33]}  Ba6 {[%clk 0:00:36]} 27. Qg2 {[%clk 0:00:31]}  g5 {[%clk 0:00:32]} 28. Kd1 {[%clk 0:00:23]}  Rf6 {[%clk 0:00:25]} 29. Nd2 {[%clk 0:00:20]}  Rd6 {[%clk 0:00:19]} 30. Nf3 {[%clk 0:00:19]}  a4 {[%clk 0:00:12]} 31. Kc1 {[%clk 0:00:18]}  Nd3+ {[%clk 0:00:11]} 32. Kb1 {[%clk 0:00:17]}  Rc6 {[%clk 0:00:06]} 33. a3 {[%clk 0:00:14]}  Rc1+ {[%clk 0:00:05]} 34. Ka2 {[%clk 0:00:15]}  Bb7 {[%clk 0:00:03]} 35. Qe2 {[%clk 0:00:14]}  Bd5+ {[%clk 0:00:03]} 36. b3 {[%clk 0:00:13]}  axb3+ {[%clk 0:00:03]} 37. Nxb3 {[%clk 0:00:14]}  Rc3 {[%clk 0:00:01]} 38. Nd2 {[%clk 0:00:13]}  Rc2+ {[%clk 0:00:01]} 39. Kb1 {[%clk 0:00:12]}  Rb2+ {[%clk 0:00:02]} 40. Ka1 {[%clk 0:00:12]}  Bf6 {[%clk 0:00:01]} 41. Nxe4 {[%clk 0:00:10]}  Rxe2+ {[%clk 0:00:01]} 42. Nxf6+ {[%clk 0:00:10]}  Kd8 {[%clk 0:00:02]} 43. Nxd5 {[%clk 0:00:09]}  Rxh2 {[%clk 0:00:02]} 44. Bf5 {[%clk 0:00:09]}  Nf4 {[%clk 0:00:02]} 45. Nxf4 {[%clk 0:00:07]}  gxf4 {[%clk 0:00:03]} 46. Nd4 {[%clk 0:00:07]}  h5 {[%clk 0:00:02]} 47. Ne6+ {[%clk 0:00:08]}  Ke7 {[%clk 0:00:02]} 48. Nxf4 {[%clk 0:00:08]}  h4 {[%clk 0:00:03]} 49. Be4 {[%clk 0:00:06]}  Rf2 {[%clk 0:00:02]} 50. Ng6+ {[%clk 0:00:04]}  Kd6 {[%clk 0:00:03]} 51. Nxh4 {[%clk 0:00:04]}  Rf4 {[%clk 0:00:03]} 52. Nf5+ {[%clk 0:00:04]}  Ke5 {[%clk 0:00:04]} 53. Bb1 {[%clk 0:00:05]}  Rf2 {[%clk 0:00:03]} 54. Ne3 {[%clk 0:00:04]}  Kd4 {[%clk 0:00:04]} 55. Nc2+ {[%clk 0:00:03]}  Kc3 {[%clk 0:00:04]} 56. a4 {[%clk 0:00:04]}  Kb3 {[%clk 0:00:04]} 57. a5 {[%clk 0:00:04]}  Rf4 {[%clk 0:00:03]} 58. Ba2+ {[%clk 0:00:00]}  Kxc2 {[%clk 0:00:03]} 0-1

[Event "December 12 Late 2023"]
[Site "https://www.chess.com"]
[Date "2023.12.12"]
[Round "6"]
[White "Roberson, Peter T"]
[Black "Atakhan, Abtin"]
[Result "1-0"]
[Board "45"]
[TimeControl "180+1"]
[WhiteFideId "412384"]
[BlackFideId "22502203"]
[WhiteElo "2548"]
[BlackElo "2748"]
[WhiteTeam "ENG"]
[BlackTeam "IRI"]
[WhiteClock "0:01:42"]
[BlackClock "0:01:14"]

1. Nc3 {[%clk 0:03:00]}  c5 {[%clk 0:02:53]} 2. e4 {[%clk 0:03:00]}  Nc6 {[%clk 0:02:53]} 3. Bb5 {[%clk 0:03:00]}  Nd4 {[%clk 0:02:53]} 4. Bc4 {[%clk 0:03:00]}  e6 {[%clk 0:02:53]} 5. Nge2 {[%clk 0:03:00]}  a6 {[%clk 0:02:50]} 6. d3 {[%clk 0:02:59]}  b5 {[%clk 0:02:49]} 7. Bb3 {[%clk 0:02:59]}  Nxb3 {[%clk 0:02:47]} 8. axb3 {[%clk 0:02:59]}  Bb7 {[%clk 0:02:47]} 9. O-O {[%clk 0:02:59]}  Nf6 {[%clk 0:02:45]} 10. Bg5 {[%clk 0:03:00]}  Qc7 {[%clk 0:02:41]} 11. f4 {[%clk 0:02:54]}  d6 {[%clk 0:02:40]} 12. Bxf6 {[%clk 0:02:50]}  gxf6 {[%clk 0:02:40]} 13. f5 {[%clk 0:02:51]}  Be7 {[%clk 0:02:29]} 14. Nf4 {[%clk 0:02:47]}  Qd7 {[%clk 0:02:26]} 15. Qh5 {[%clk 0:02:19]}  exf5 {[%clk 0:02:07]} 16. Nfd5 {[%clk 0:02:19]}  b4 {[%clk 0:02:07]} 17. Nb6 {[%clk 0:02:06]}  Qd8 {[%clk 0:02:03]} 18. Ncd5 {[%clk 0:02:03]}  fxe4 {[%clk 0:01:59]} 19. Rae1 {[%clk 0:01:51]}  Bxd5 {[%clk 0:01:45]} 20. Nxd5 {[%clk 0:01:50]}  Ra7 {[%clk 0:01:14]} 21. Rxe4 {[%clk 0:01:42]} 1-0

[Event "December 12 Late 2023"]
[Site "https://www.chess.com"]
[Date "2023.12.12"]
[Round "6"]
[White "Rosen, Eric"]
[Black "Morris-Suzuki, Alan H"]
[Result "1-0"]
[Board "49"]
[TimeControl "180+1"]
[WhiteFideId "2032562"]
[BlackFideId "30933218"]
[WhiteElo "2694"]
[BlackElo "2530"]
[WhiteTeam "USA"]
[BlackTeam "USA"]
[WhiteClock "0:00:04"]
[BlackClock "0:00:03"]

1. e4 {[%clk 0:02:52]}  c5 {[%clk 0:02:59]} 2. Nc3 {[%clk 0:02:50]}  a6 {[%clk 0:02:57]} 3. g3 {[%clk 0:02:50]}  b5 {[%clk 0:02:56]} 4. Bg2 {[%clk 0:02:50]}  Bb7 {[%clk 0:02:57]} 5. d3 {[%clk 0:02:51]}  e6 {[%clk 0:02:55]} 6. f4 {[%clk 0:02:41]}  h5 {[%clk 0:02:50]} 7. Nh3 {[%clk 0:02:36]}  Nf6 {[%clk 0:02:40]} 8. O-O {[%clk 0:02:33]}  b4 {[%clk 0:02:36]} 9. Na4 {[%clk 0:02:24]}  d5 {[%clk 0:02:34]} 10. f5 {[%clk 0:02:12]}  dxe4 {[%clk 0:02:15]} 11. fxe6 {[%clk 0:02:12]}  fxe6 {[%clk 0:02:13]} 12. Ng5 {[%clk 0:02:04]}  Qd4+ {[%clk 0:01:50]} 13. Kh1 {[%clk 0:01:59]}  h4 {[%clk 0:01:45]} 14. dxe4 {[%clk 0:01:33]}  hxg3 {[%clk 0:00:49]} 15. h3 {[%clk 0:01:32]}  Qxd1 {[%clk 0:00:29]} 16. Rxd1 {[%clk 0:01:32]}  Bc6 {[%clk 0:00:24]} 17. Nxe6 {[%clk 0:01:21]}  Ra7 {[%clk 0:00:23]} 18. Naxc5 {[%clk 0:01:18]}  Bxc5 {[%clk 0:00:20]} 19. Nxc5 {[%clk 0:01:19]}  Nbd7 {[%clk 0:00:19]} 20. Be3 {[%clk 0:01:00]}  Ng4 {[%clk 0:00:16]} 21. Bg1 {[%clk 0:00:42]}  Ndf6 {[%clk 0:00:15]} 22. Rd3 {[%clk 0:00:38]}  Re7 {[%clk 0:00:15]} 23. Rxg3 {[%clk 0:00:37]}  Ne5 {[%clk 0:00:08]} 24. Re1 {[%clk 0:00:36]}  Rh4 {[%clk 0:00:07]} 25. Bd4 {[%clk 0:00:26]}  Nh5 {[%clk 0:00:07]} 26. Rg5 {[%clk 0:00:22]}  Nc4 {[%clk 0:00:05]} 27. b3 {[%clk 0:00:21]}  Nd2 {[%clk 0:00:05]} 28. Rg4 {[%clk 0:00:15]}  Rxg4 {[%clk 0:00:04]} 29. hxg4 {[%clk 0:00:16]}  Ng3+ {[%clk 0:00:05]} 30. Kh2 {[%clk 0:00:17]}  Ngxe4 {[%clk 0:00:05]} 31. Nxe4 {[%clk 0:00:16]}  Nxe4 {[%clk 0:00:06]} 32. Bf3 {[%clk 0:00:04]}  Kf7 {[%clk 0:00:05]} 33. Kg2 {[%clk 0:00:04]}  Bb7 {[%clk 0:00:04]} 34. Rf1 {[%clk 0:00:04]}  Kg6 {[%clk 0:00:04]} 35. Re1 {[%clk 0:00:04]}  Kg5 {[%clk 0:00:04]} 36. Be3+ {[%clk 0:00:04]}  Kg6 {[%clk 0:00:04]} 37. Bf4 {[%clk 0:00:04]}  Kf7 {[%clk 0:00:04]} 38. Re3 {[%clk 0:00:04]}  Kf6 {[%clk 0:00:03]} 39. Rd3 {[%clk 0:00:04]}  g5 {[%clk 0:00:03]} 40. Bc1 {[%clk 0:00:03]}  Rc7 {[%clk 0:00:02]} 41. Bb2+ {[%clk 0:00:03]}  Kf7 {[%clk 0:00:02]} 42. c4 {[%clk 0:00:02]}  bxc3 {[%clk 0:00:03]} 43. Bc1 {[%clk 0:00:02]}  c2 {[%clk 0:00:03]} 44. Re3 {[%clk 0:00:03]}  Re7 {[%clk 0:00:03]} 45. Re2 {[%clk 0:00:02]}  Kf6 {[%clk 0:00:03]} 46. Rxc2 {[%clk 0:00:02]}  Bd5 {[%clk 0:00:04]} 47. Bb2+ {[%clk 0:00:03]}  Ke6 {[%clk 0:00:04]} 48. Re2 {[%clk 0:00:04]}  Kd6 {[%clk 0:00:04]} 49. Ba3+ {[%clk 0:00:05]}  Nc5 {[%clk 0:00:03]} 50. Bxc5+ {[%clk 0:00:04]} 1-0

[Event "December 12 Late 2023"]
[Site "https://www.chess.com"]
[Date "2023.12.12"]
[Round "6"]
[White "Krallis, Christos"]
[Black "Kopczynski, Michal"]
[Result "1-0"]
[Board "52"]
[TimeControl "180+1"]
[WhiteFideId "4298896"]
[BlackFideId "1124200"]
[WhiteElo "2674"]
[BlackElo "2526"]
[WhiteTeam "GRE"]
[BlackTeam "POL"]
[WhiteClock "0:02:42"]
[BlackClock "0:02:23"]

1. g3 {[%clk 0:02:59]}  d6 {[%clk 0:02:59]} 2. Bg2 {[%clk 0:02:59]}  e5 {[%clk 0:03:00]} 3. e4 {[%clk 0:02:58]}  f5 {[%clk 0:03:00]} 4. Nc3 {[%clk 0:02:57]}  Nf6 {[%clk 0:02:59]} 5. Nge2 {[%clk 0:02:57]}  Nc6 {[%clk 0:02:59]} 6. O-O {[%clk 0:02:57]}  fxe4 {[%clk 0:02:59]} 7. Nxe4 {[%clk 0:02:57]}  Nxe4 {[%clk 0:03:00]} 8. Bxe4 {[%clk 0:02:57]}  Bh3 {[%clk 0:03:00]} 9. Nf4 {[%clk 0:02:52]}  Bxf1 {[%clk 0:02:40]} 10. Qh5+ {[%clk 0:02:50]}  g6 {[%clk 0:02:36]} 11. Bxg6+ {[%clk 0:02:47]}  Ke7 {[%clk 0:02:23]} 12. Nd5+ {[%clk 0:02:45]}  Ke6 {[%clk 0:02:23]} 13. Bf7+ {[%clk 0:02:42]}  Kd7 {[%clk 0:02:23]} 14. Qf5# {[%clk 0:02:42]} 1-0

[Event "December 12 Late 2023"]
[Site "https://www.chess.com"]
[Date "2023.12.12"]
[Round "6"]
[White "Nagare Kaivalya Sandip"]
[Black "Leenhouts, Koen"]
[Result "1-0"]
[Board "53"]
[TimeControl "180+1"]
[WhiteFideId "25957929"]
[BlackFideId "1008439"]
[WhiteElo "2672"]
[BlackElo "2524"]
[WhiteTeam "IND"]
[BlackTeam "NED"]
[WhiteClock "0:01:54"]
[BlackClock "0:00:02"]

1. e4 {[%clk 0:02:53]}  e6 {[%clk 0:02:59]} 2. d4 {[%clk 0:02:53]}  d5 {[%clk 0:03:00]} 3. Nc3 {[%clk 0:02:53]}  Bb4 {[%clk 0:02:59]} 4. e5 {[%clk 0:02:52]}  c5 {[%clk 0:02:58]} 5. a3 {[%clk 0:02:52]}  Bxc3+ {[%clk 0:02:58]} 6. bxc3 {[%clk 0:02:53]}  Qc7 {[%clk 0:02:49]} 7. Nf3 {[%clk 0:02:53]}  b6 {[%clk 0:02:47]} 8. a4 {[%clk 0:02:52]}  Ba6 {[%clk 0:02:46]} 9. Bb5+ {[%clk 0:02:49]}  Bxb5 {[%clk 0:02:45]} 10. axb5 {[%clk 0:02:50]}  Ne7 {[%clk 0:02:45]} 11. O-O {[%clk 0:02:50]}  O-O {[%clk 0:02:44]} 12. dxc5 {[%clk 0:02:46]}  bxc5 {[%clk 0:02:40]} 13. Qd3 {[%clk 0:02:40]}  Nd7 {[%clk 0:02:33]} 14. Ng5 {[%clk 0:02:34]}  Nf5 {[%clk 0:02:12]} 15. f4 {[%clk 0:02:33]}  c4 {[%clk 0:02:07]} 16. Qh3 {[%clk 0:02:31]}  h6 {[%clk 0:02:05]} 17. Nf3 {[%clk 0:02:31]}  Qc5+ {[%clk 0:01:56]} 18. Kh1 {[%clk 0:02:29]}  Ne3 {[%clk 0:01:44]} 19. Ba3 {[%clk 0:02:18]}  Qxb5 {[%clk 0:01:32]} 20. Rfb1 {[%clk 0:02:18]}  Qxb1+ {[%clk 0:00:47]} 21. Rxb1 {[%clk 0:02:16]}  Rfb8 {[%clk 0:00:48]} 22. Rg1 {[%clk 0:02:10]}  Nxc2 {[%clk 0:00:45]} 23. Bd6 {[%clk 0:02:06]}  Rb3 {[%clk 0:00:44]} 24. f5 {[%clk 0:02:00]}  Re8 {[%clk 0:00:37]} 25. f6 {[%clk 0:01:58]}  Rxc3 {[%clk 0:00:27]} 26. Qg4 {[%clk 0:01:59]}  g6 {[%clk 0:00:20]} 27. Qh4 {[%clk 0:01:59]}  h5 {[%clk 0:00:20]} 28. g4 {[%clk 0:01:55]}  Rxf3 {[%clk 0:00:17]} 29. gxh5 {[%clk 0:01:56]}  Ne3 {[%clk 0:00:02]} 30. hxg6 {[%clk 0:01:56]}  fxg6 {[%clk 0:00:01]} 31. Rxg6+ {[%clk 0:01:54]}  Kf7 {[%clk 0:00:02]} 32. Qh7# {[%clk 0:01:54]} 1-0

[Event "December 12 Late 2023"]
[Site "https://www.chess.com"]
[Date "2023.12.12"]
[Round "6"]
[White "Ismayil, Malak"]
[Black "Goryachkina, Aleksandra"]
[Result "1/2-1/2"]
[Board "54"]
[TimeControl "180+1"]
[WhiteFideId "13412604"]
[BlackFideId "4147103"]
[WhiteElo "2518"]
[BlackElo "2666"]
[WhiteTeam "AZE"]
[BlackTeam "FID"]
[WhiteClock "0:00:03"]
[BlackClock "0:00:04"]

1. e4 {[%clk 0:03:00]}  c5 {[%clk 0:02:59]} 2. Nf3 {[%clk 0:02:56]}  e6 {[%clk 0:03:00]} 3. c3 {[%clk 0:02:54]}  d5 {[%clk 0:02:59]} 4. exd5 {[%clk 0:02:54]}  Qxd5 {[%clk 0:02:58]} 5. d4 {[%clk 0:02:53]}  Nf6 {[%clk 0:02:58]} 6. Be3 {[%clk 0:02:48]}  cxd4 {[%clk 0:02:50]} 7. Nxd4 {[%clk 0:02:49]}  Be7 {[%clk 0:02:45]} 8. Nd2 {[%clk 0:02:42]}  O-O {[%clk 0:02:42]} 9. Qc2 {[%clk 0:02:30]}  Nc6 {[%clk 0:02:35]} 10. Nb5 {[%clk 0:02:01]}  Qd8 {[%clk 0:02:12]} 11. O-O-O {[%clk 0:01:58]}  Bd7 {[%clk 0:02:10]} 12. Nb3 {[%clk 0:01:55]}  Rc8 {[%clk 0:02:03]} 13. Kb1 {[%clk 0:01:45]}  Nb4 {[%clk 0:01:52]} 14. Qc1 {[%clk 0:01:44]}  Nbd5 {[%clk 0:01:51]} 15. Bd3 {[%clk 0:01:31]}  a6 {[%clk 0:01:44]} 16. N5d4 {[%clk 0:01:28]}  b5 {[%clk 0:01:43]} 17. Qd2 {[%clk 0:01:16]}  b4 {[%clk 0:01:18]} 18. c4 {[%clk 0:01:15]}  Nxe3 {[%clk 0:01:18]} 19. fxe3 {[%clk 0:01:13]}  a5 {[%clk 0:01:09]} 20. g4 {[%clk 0:01:09]}  a4 {[%clk 0:01:05]} 21. Nc1 {[%clk 0:01:10]}  Nxg4 {[%clk 0:00:53]} 22. Qe2 {[%clk 0:01:05]}  Nf6 {[%clk 0:00:46]} 23. Rhg1 {[%clk 0:01:03]}  Qa5 {[%clk 0:00:36]} 24. Nf3 {[%clk 0:00:46]}  Bc6 {[%clk 0:00:29]} 25. Ng5 {[%clk 0:00:41]}  h6 {[%clk 0:00:23]} 26. Nh3 {[%clk 0:00:40]}  Be4 {[%clk 0:00:15]} 27. Bxe4 {[%clk 0:00:39]}  Nxe4 {[%clk 0:00:16]} 28. Qg4 {[%clk 0:00:26]}  Ng5 {[%clk 0:00:15]} 29. Nxg5 {[%clk 0:00:22]}  Bxg5 {[%clk 0:00:15]} 30. h4 {[%clk 0:00:21]}  Bf6 {[%clk 0:00:15]} 31. Rdf1 {[%clk 0:00:21]}  Qe5 {[%clk 0:00:14]} 32. Nd3 {[%clk 0:00:19]}  Qxe3 {[%clk 0:00:11]} 33. Rxf6 {[%clk 0:00:19]}  Qxd3+ {[%clk 0:00:11]} 34. Ka1 {[%clk 0:00:20]}  g6 {[%clk 0:00:11]} 35. h5 {[%clk 0:00:13]}  Rxc4 {[%clk 0:00:11]} 36. Rxg6+ {[%clk 0:00:05]}  fxg6 {[%clk 0:00:11]} 37. Qxe6+ {[%clk 0:00:05]}  Kh8 {[%clk 0:00:07]} 38. Qe5+ {[%clk 0:00:04]}  Kg8 {[%clk 0:00:05]} 39. Qe6+ {[%clk 0:00:03]}  Kh8 {[%clk 0:00:04]} 40. Qe5+ {[%clk 0:00:03]}  Kg8 {[%clk 0:00:04]} 41. Qe6+ {[%clk 0:00:03]} 1/2-1/2

[Event "December 12 Late 2023"]
[Site "https://www.chess.com"]
[Date "2023.12.12"]
[Round "6"]
[White "Goltsev, Dmitry"]
[Black "Novikova, Galina"]
[Result "1-0"]
[Board "55"]
[TimeControl "180+1"]
[WhiteFideId "24176710"]
[BlackFideId "4157095"]
[WhiteElo "2665"]
[BlackElo "2497"]
[WhiteTeam "RUS"]
[BlackTeam "RUS"]
[WhiteClock "0:00:42"]
[BlackClock "0:00:00"]

1. e4 {[%clk 0:02:44]}  e6 {[%clk 0:03:00]} 2. d4 {[%clk 0:02:41]}  d5 {[%clk 0:03:01]} 3. exd5 {[%clk 0:02:42]}  exd5 {[%clk 0:03:01]} 4. Nf3 {[%clk 0:02:43]}  Nf6 {[%clk 0:03:01]} 5. c4 {[%clk 0:02:44]}  Bg4 {[%clk 0:02:55]} 6. Nc3 {[%clk 0:02:43]}  c6 {[%clk 0:02:45]} 7. Bd3 {[%clk 0:02:42]}  Bd6 {[%clk 0:02:40]} 8. O-O {[%clk 0:02:39]}  O-O {[%clk 0:02:40]} 9. Bg5 {[%clk 0:02:38]}  dxc4 {[%clk 0:02:39]} 10. Bxc4 {[%clk 0:02:39]}  Nbd7 {[%clk 0:02:38]} 11. h3 {[%clk 0:02:38]}  Bh5 {[%clk 0:02:38]} 12. Re1 {[%clk 0:02:38]}  Qc7 {[%clk 0:02:32]} 13. Rc1 {[%clk 0:02:34]}  Rfe8 {[%clk 0:02:27]} 14. Qd3 {[%clk 0:02:21]}  Bg6 {[%clk 0:02:24]} 15. Qd2 {[%clk 0:02:21]}  a6 {[%clk 0:02:02]} 16. a3 {[%clk 0:02:15]}  Ne4 {[%clk 0:01:50]} 17. Nxe4 {[%clk 0:02:02]}  Bxe4 {[%clk 0:01:51]} 18. Ne5 {[%clk 0:01:38]}  Bg6 {[%clk 0:01:00]} 19. Nxg6 {[%clk 0:01:32]}  hxg6 {[%clk 0:01:01]} 20. Qd3 {[%clk 0:01:33]}  Nb6 {[%clk 0:00:56]} 21. Ba2 {[%clk 0:01:31]}  Rxe1+ {[%clk 0:00:48]} 22. Rxe1 {[%clk 0:01:30]}  Nd5 {[%clk 0:00:48]} 23. g3 {[%clk 0:01:25]}  Qd7 {[%clk 0:00:42]} 24. Kh2 {[%clk 0:01:23]}  Re8 {[%clk 0:00:43]} 25. Re4 {[%clk 0:01:19]}  f5 {[%clk 0:00:29]} 26. Rxe8+ {[%clk 0:01:16]}  Qxe8 {[%clk 0:00:30]} 27. Qf3 {[%clk 0:01:11]}  Qe6 {[%clk 0:00:27]} 28. h4 {[%clk 0:01:09]}  Kh7 {[%clk 0:00:19]} 29. h5 {[%clk 0:01:06]}  gxh5 {[%clk 0:00:20]} 30. Qxh5+ {[%clk 0:01:06]}  Kg8 {[%clk 0:00:20]} 31. Qf3 {[%clk 0:00:58]}  Kh7 {[%clk 0:00:20]} 32. Qh5+ {[%clk 0:00:52]}  Kg8 {[%clk 0:00:20]} 33. Bb1 {[%clk 0:00:52]}  g6 {[%clk 0:00:03]} 34. Qd1 {[%clk 0:00:47]}  Be7 {[%clk 0:00:03]} 35. Bd2 {[%clk 0:00:44]}  Qf7 {[%clk 0:00:03]} 36. Bd3 {[%clk 0:00:43]}  Nf6 {[%clk 0:00:03]} 37. Qe2 {[%clk 0:00:42]}  Ng4+ {[%clk 0:00:04]} 38. Kg1 {[%clk 0:00:42]}  Bf6 {[%clk 0:00:00]} 39. Bc4 {[%clk 0:00:42]} 1-0